fUST/lending_fUST_20250624
["ID","MTS","AMOUNT","RATE_DAILY","PERIOD"]
[367337159,1750755059735,-639.86,0.00020547,14]
[367337160,1750755059744,-460.0,0.00020547,2]
[367337161,1750755059754,-1033.48,0.00020547,2]
[367337162,1750755059763,-596.74297341,0.00020547,2]
[367337163,1750755059774,-460.0,0.00020547,2]
[367337164,1750755059784,-701.42,0.00020547,2]
[367337165,1750755059793,-470.59504887,0.00020547,2]
[367337166,1750755059803,-460.0,0.00020547,2]
[367337167,1750755059813,-1859.83,0.00020547,2]
[367337168,1750755059823,-460.0,0.00020547,2]
[367337169,1750755059833,-460.0,0.00020547,2]
[367337170,1750755059843,-460.0,0.00020547,2]
[367337171,1750755059853,-460.0,0.00020547,2]
[367337172,1750755059862,-460.0,0.00020547,2]
[367337173,1750755059872,-460.0,0.00020547,2]
[367337174,1750755059883,-460.0,0.00020547,2]
[367337175,1750755059894,-460.0,0.00020547,2]
[367337176,1750755059904,-453.20556377,0.00020547,2]
[367337177,1750755059913,-460.0,0.00020547,2]
[367337178,1750755059923,-460.0,0.00020547,2]
[367337179,1750755059933,-460.0,0.00020547,2]
[367337180,1750755059942,-460.0,0.00020547,2]
[367337181,1750755059951,-460.0,0.00020547,2]
[367337182,1750755059961,-460.0,0.00020547,2]
[367337183,1750755059970,-460.0,0.00020547,2]
[367337184,1750755059981,-460.0,0.00020547,2]
[367337185,1750755059991,-343.03736318,0.00020547,2]
[367337186,1750755060000,-460.0,0.00020547,2]
[367337187,1750755060010,-500.0,0.00020547,2]
[367337188,1750755060020,-460.0,0.00020547,2]
[367337189,1750755060030,-837.07,0.00020547,2]
[367337190,1750755060040,-1145.59,0.00020547,2]
[367337191,1750755060051,-460.0,0.00020547,2]
[367337192,1750755060062,-460.0,0.00020547,2]
[367337193,1750755060072,-460.0,0.00020547,2]
[367337194,1750755060082,-460.0,0.00020547,2]
[367337195,1750755060092,-460.0,0.00020547,2]
[367337196,1750755060102,-2160.1,0.00020547,2]
[367337197,1750755060112,-460.0,0.00020547,2]
[367337198,1750755060121,-460.0,0.00020547,2]
[367337199,1750755060131,-460.0,0.00020547,2]
[367337200,1750755060141,-460.0,0.00020547,2]
[367337201,1750755060274,-460.0,0.00020547,2]
[367337202,1750755060301,-460.0,0.00020547,2]
[367337203,1750755060311,-460.0,0.00020547,2]
[367337204,1750755060320,-460.0,0.00020547,2]
[367337205,1750755060330,-460.0,0.00020547,2]
[367337206,1750755060339,-802.49,0.00020547,2]
[367337207,1750755060348,-460.0,0.00020547,2]
[367337208,1750755060357,-421.33972175,0.00020547,2]
[367337209,1750755060366,-3492.25,0.00020547,2]
[367337210,1750755060375,-1711.46,0.00020547,2]
[367337211,1750755060384,-321.01943641,0.00020547,2]
[367337212,1750755060394,-1352.03,0.00020547,2]
[367337213,1750755060404,-1160.85,0.00020547,2]
[367337214,1750755060413,-460.0,0.00020547,2]
[367337215,1750755060422,-3802.86,0.00020547,2]
[367337216,1750755060431,-460.0,0.00020547,2]
[367337217,1750755060440,-460.0,0.00020547,2]
[367337218,1750755060450,-460.0,0.00020547,2]
[367337219,1750755060459,-460.0,0.00020547,2]
[367337220,1750755060469,-460.0,0.00020547,2]
[367337221,1750755060478,-512.81,0.00020547,2]
[367337222,1750755060488,-1227.2,0.00020547,2]
[367337223,1750755060497,-460.0,0.00020547,2]
[367337224,1750755060506,-460.0,0.00020547,2]
[367337225,1750755060515,-1558.69,0.00020547,2]
[367337226,1750755060524,-460.0,0.00020547,2]
[367337227,1750755060532,-460.0,0.00020547,2]
[367337228,1750755060541,-890.92,0.00020547,2]
[367337229,1750755060551,-1129.31,0.00020547,2]
[367337230,1750755060562,-460.0,0.00020547,2]
[367337231,1750755060571,-460.0,0.00020547,2]
[367337232,1750755060581,-460.0,0.00020547,2]
[367337233,1750755060590,-503.39,0.00020547,2]
[367337234,1750755060600,-3336.33,0.00020547,2]
[367337235,1750755060609,-460.0,0.00020547,2]
[367337236,1750755060618,-460.0,0.00020547,2]
[367337237,1750755060627,-460.0,0.00020547,2]
[367337238,1750755060637,-460.0,0.00020547,2]
[367337239,1750755060647,-460.0,0.00020547,2]
[367337240,1750755060657,-3108.84,0.00020547,2]
[367337241,1750755060667,-1043.22,0.00020547,2]
[367337242,1750755060676,-281.75323977,0.00020547,2]
[367337243,1750755060685,-2718.8,0.00020547,2]
[367337244,1750755060694,-460.0,0.00020547,2]
[367337245,1750755060703,-460.0,0.00020547,2]
[367337246,1750755060713,-2297.74,0.00020547,2]
[367337247,1750755060722,-548.95398249,0.00020547,2]
[367337248,1750755060731,-472.84,0.00020547,2]
[367337249,1750755060740,-686.97,0.00020547,2]
[367337250,1750755060749,-460.0,0.00020547,2]
[367337251,1750755060759,-460.0,0.00020547,2]
[367337252,1750755060769,-460.0,0.00020547,2]
[367337253,1750755060778,-1034.53,0.00020547,2]
[367337254,1750755060787,-460.0,0.00020547,2]
[367337255,1750755060796,-460.0,0.00020547,2]
[367337256,1750755060806,-4423.11,0.00020547,2]
[367337257,1750755060815,-460.0,0.00020547,2]
[367337258,1750755060824,-295.42348183,0.00020547,2]
[367337259,1750755060833,-460.0,0.00020547,2]
[367337260,1750755060842,-498.87,0.00020547,2]
[367337261,1750755060851,-460.0,0.00020547,2]
[367337262,1750755060861,-1356.23,0.00020547,2]
[367337263,1750755060870,-564.81,0.00020547,2]
[367337264,1750755060879,-1527.77,0.00020547,2]
[367337265,1750755060889,-460.0,0.00020547,2]
[367337266,1750755060899,-917.06,0.00020547,2]
[367337267,1750755060908,-460.0,0.00020547,2]
[367337268,1750755060917,-460.0,0.00020547,2]
[367337269,1750755060926,-556.13,0.00020547,2]
[367337270,1750755060935,-460.0,0.00020547,2]
[367337271,1750755060944,-1891.95,0.00020547,2]
[367337272,1750755060953,-460.0,0.00020547,2]
[367337273,1750755060963,-1048.02,0.00020547,2]
[367337274,1750755060972,-1140.59,0.00020547,2]
[367337275,1750755060982,-609.41,0.00020547,2]
[367337276,1750755060992,-3302.7,0.00020547,2]
[367337277,1750755061001,-460.0,0.00020547,2]
[367337278,1750755061011,-460.0,0.00020547,2]
[367337279,1750755061021,-460.0,0.00020547,2]
[367337280,1750755061030,-1182.78,0.00020547,2]
[367337281,1750755061040,-865.91,0.00020547,2]
[367337282,1750755061049,-2811.91,0.00020547,2]
[367337283,1750755061059,-460.0,0.00020547,2]
[367337284,1750755061069,-460.0,0.00020547,2]
[367337285,1750755061079,-460.0,0.00020547,2]
[367337286,1750755061088,-460.0,0.00020547,2]
[367337287,1750755061098,-468.72,0.00020547,2]
[367337288,1750755061108,-460.0,0.00020547,2]
[367337289,1750755061117,-1078.54,0.00020547,2]
[367337290,1750755061127,-460.0,0.00020547,2]
[367337291,1750755061136,-460.0,0.00020547,2]
[367337292,1750755061145,-1172.06,0.00020547,2]
[367337293,1750755061154,-460.0,0.00020547,2]
[367337294,1750755061164,-936.84,0.00020547,2]
[367337295,1750755061173,-460.0,0.00020547,2]
[367337296,1750755061182,-1147.18,0.00020547,2]
[367337297,1750755061191,-669.18,0.00020547,2]
[367337298,1750755061201,-1364.47,0.00020547,2]
[367337299,1750755061211,-460.0,0.00020547,2]
[367337300,1750755061220,-787.57,0.00020547,2]
[367337301,1750755061230,-1283.7,0.00020547,2]
[367337302,1750755061239,-3667.8,0.00020547,2]
[367337303,1750755061249,-460.0,0.00020547,2]
[367337304,1750755061259,-2790.88,0.00020547,2]
[367337305,1750755061268,-1147.28,0.00020547,2]
[367337306,1750755061277,-460.0,0.00020547,2]
[367337307,1750755061287,-827.6,0.00020547,2]
[367337308,1750755061296,-460.0,0.00020547,2]
[367337309,1750755061306,-460.0,0.00020547,2]
[367337310,1750755061315,-1404.87,0.00020547,2]
[367337311,1750755061324,-460.0,0.00020547,2]
[367337312,1750755061333,-567.76,0.00020547,2]
[367337313,1750755061342,-460.0,0.00020547,2]
[367337314,1750755061352,-665.95,0.00020547,2]
[367337315,1750755061360,-494.52,0.00020547,2]
[367337316,1750755061370,-2058.09,0.00020547,2]
[367337317,1750755061379,-562.0,0.00020549,2]
[367337318,1750755061389,-1500.0,0.00020568,2]
[367337319,1750755061398,-1500.0,0.00020568,2]
[367337320,1750755061408,-1500.0,0.00020568,2]
[367337321,1750755061417,-452.1624179,0.00020568,2]
[367337322,1750755061426,-1500.0,0.00020568,2]
[367337323,1750755061435,-1500.0,0.00020568,2]
[367337324,1750755061445,-501.90482638,0.00020573,2]
[367337325,1750755061454,-500.0,0.00020573,2]
[367337326,1750755061464,-500.0,0.00020573,2]
[367337327,1750755061473,-500.0,0.00020573,2]
[367337328,1750755061483,-500.0,0.00020573,2]
[367337329,1750755061493,-500.0,0.00020573,2]
[367337330,1750755061503,-503.62943217,0.00020573,2]
[367337331,1750755061513,-500.0,0.00020573,2]
[367337332,1750755061522,-259.10692004,0.00020573,2]
[367337333,1750755061531,-500.0,0.00020573,2]
[367337334,1750755061540,-500.0,0.00020573,2]
[367337335,1750755061550,-500.0,0.00020573,2]
[367337336,1750755061561,-500.0,0.00020573,2]
[367337337,1750755061573,-500.0,0.00020573,2]
[367337338,1750755061582,-500.0,0.00020573,2]
[367337339,1750755061592,-500.0,0.00020573,2]
[367337340,1750755061602,-501.20111437,0.00020573,2]
[367337341,1750755061611,-526.48524204,0.00020573,2]
[367337342,1750755061621,-500.0,0.00020573,2]
[367337343,1750755061631,-500.0,0.00020573,2]
[367337344,1750755061642,-500.0,0.00020573,2]
[367337345,1750755061652,-500.0,0.00020573,2]
[367337346,1750755061661,-500.0,0.00020573,2]
[367337347,1750755061670,-500.0,0.00020573,2]
[367337348,1750755061679,-500.0,0.00020573,2]
[367337349,1750755061688,-500.0,0.00020573,2]
[367337350,1750755061697,-500.0,0.00020573,2]
[367337351,1750755061707,-562.0,0.00020576,2]
[367337352,1750755061716,-151.0,0.000206,2]
[367337353,1750755061725,-151.0,0.000206,4]
[367337354,1750755061736,-12520.14,0.000206,2]
[367337355,1750755061745,-6750.25,0.000206,2]
[367337356,1750755061755,-82368.32,0.000206,2]
[367337357,1750755061764,-562.0,0.00020604,2]
[367337358,1750755061773,-2654.37735629,0.00020624,3]
[367337359,1750755061783,-562.0,0.00020631,2]
[367337360,1750755061793,-562.0,0.00020658,2]
[367337361,1750755061803,-562.0,0.00020686,2]
[367337362,1750755061812,-562.0,0.00020713,2]
[367337363,1750755061822,-562.0,0.00020741,2]
[367337364,1750755061831,-562.0,0.00020768,2]
[367337365,1750755061840,-160.0,0.00020792,6]
[367337366,1750755061850,-562.0,0.00020795,2]
[367337367,1750755061859,-300.0,0.00020813,2]
[367337368,1750755061868,-2000.0,0.00020816,2]
[367337369,1750755061877,-1082.60406923,0.00020816,2]
[367337370,1750755061887,-2000.0,0.00020816,2]
[367337371,1750755061898,-702.83,0.00020821,2]
[367337372,1750755061907,-702.83,0.00020821,2]
[367337373,1750755061917,-151.0,0.00020821,2]
[367337374,1750755061926,-460.0,0.00020821,2]
[367337375,1750755061938,-460.0,0.00020821,2]
[367337376,1750755061948,-460.0,0.00020821,2]
[367337377,1750755061958,-460.0,0.00020821,2]
[367337378,1750755061967,-460.0,0.00020821,2]
[367337379,1750755061977,-460.0,0.00020821,2]
[367337380,1750755061987,-460.0,0.00020821,2]
[367337381,1750755061997,-460.0,0.00020821,2]
[367337382,1750755062008,-460.0,0.00020821,2]
[367337383,1750755062017,-451.20566503,0.00020821,2]
[367337384,1750755062026,-460.0,0.00020821,2]
[367337385,1750755062035,-600.0,0.00020821,2]
[367337386,1750755062044,-460.0,0.00020821,2]
[367337387,1750755062053,-484.61933843,0.00020821,2]
[367337388,1750755062063,-460.0,0.00020821,2]
[367337389,1750755062073,-449.57793822,0.00020821,2]
[367337390,1750755062083,-465.77803353,0.00020821,2]
[367337391,1750755062093,-526.94286958,0.00020821,2]
[367337392,1750755062102,-460.0,0.00020821,2]
[367337393,1750755062111,-525.25,0.00020821,2]
[367337394,1750755062121,-460.0,0.00020821,2]
[367337395,1750755062131,-460.0,0.00020821,2]
[367337396,1750755062140,-460.0,0.00020821,2]
[367337397,1750755062150,-460.0,0.00020821,2]
[367337398,1750755062160,-589.59,0.00020821,2]
[367337399,1750755062169,-639.86,0.00020821,15]
[367337400,1750755062179,-460.0,0.00020821,2]
[367337401,1750755062188,-1033.48,0.00020821,2]
[367337402,1750755062198,-460.0,0.00020821,2]
[367337403,1750755062209,-701.42,0.00020821,2]
[367337404,1750755062220,-460.0,0.00020821,2]
[367337405,1750755062230,-1859.83,0.00020821,2]
[367337406,1750755062239,-460.0,0.00020821,2]
[367337407,1750755062249,-460.0,0.00020821,2]
[367337408,1750755062260,-460.0,0.00020821,2]
[367337409,1750755062269,-460.0,0.00020821,2]
[367337410,1750755062278,-460.0,0.00020821,2]
[367337411,1750755062287,-460.0,0.00020821,2]
[367337412,1750755062297,-460.0,0.00020821,2]
[367337413,1750755062306,-460.0,0.00020821,2]
[367337414,1750755062315,-460.0,0.00020821,2]
[367337415,1750755062325,-460.0,0.00020821,2]
[367337416,1750755062333,-460.0,0.00020821,2]
[367337417,1750755062342,-460.0,0.00020821,2]
[367337418,1750755062351,-460.0,0.00020821,2]
[367337419,1750755062360,-460.0,0.00020821,2]
[367337420,1750755062368,-460.0,0.00020821,2]
[367337421,1750755062378,-261.21971899,0.00020821,2]
[367337422,1750755062387,-837.07,0.00020821,2]
[367337423,1750755062396,-460.0,0.00020821,2]
[367337424,1750755062406,-1145.59,0.00020821,2]
[367337425,1750755062415,-460.0,0.00020821,2]
[367337426,1750755062424,-460.0,0.00020821,2]
[367337427,1750755062432,-460.0,0.00020821,2]
[367337428,1750755062441,-460.0,0.00020821,2]
[367337429,1750755062452,-460.0,0.00020821,2]
[367337430,1750755062461,-2160.1,0.00020821,2]
[367337431,1750755062470,-460.0,0.00020821,2]
[367337432,1750755062479,-460.0,0.00020821,2]
[367337433,1750755062488,-460.0,0.00020821,2]
[367337434,1750755062498,-474.36753628,0.00020821,2]
[367337435,1750755062509,-460.0,0.00020821,2]
[367337436,1750755062518,-460.0,0.00020821,2]
[367337437,1750755062527,-460.0,0.00020821,2]
[367337438,1750755062536,-460.0,0.00020821,2]
[367337439,1750755062545,-460.0,0.00020821,2]
[367337440,1750755062555,-802.49,0.00020821,2]
[367337441,1750755062570,-460.0,0.00020821,2]
[367337442,1750755062579,-3492.25,0.00020821,2]
[367337443,1750755062588,-1711.46,0.00020821,2]
[367337444,1750755062597,-1352.03,0.00020821,2]
[367337445,1750755062608,-1160.85,0.00020821,2]
[367337446,1750755062618,-460.0,0.00020821,2]
[367337447,1750755062627,-3802.86,0.00020821,2]
[367337448,1750755062637,-460.0,0.00020821,2]
[367337449,1750755062646,-522.87833624,0.00020821,2]
[367337450,1750755062656,-460.0,0.00020821,2]
[367337451,1750755062665,-460.0,0.00020821,2]
[367337452,1750755062674,-460.0,0.00020821,2]
[367337453,1750755062683,-512.81,0.00020821,2]
[367337454,1750755062692,-1227.2,0.00020821,2]
[367337455,1750755062701,-460.0,0.00020821,2]
[367337456,1750755062710,-460.0,0.00020821,2]
[367337457,1750755062719,-1558.69,0.00020821,2]
[367337458,1750755062730,-460.0,0.00020821,2]
[367337459,1750755062739,-460.0,0.00020821,2]
[367337460,1750755062749,-890.92,0.00020821,2]
[367337461,1750755062759,-1129.31,0.00020821,2]
[367337462,1750755062768,-528.66598139,0.00020821,2]
[367337463,1750755062777,-460.0,0.00020821,2]
[367337464,1750755062786,-460.0,0.00020821,2]
[367337465,1750755062796,-503.39,0.00020821,2]
[367337466,1750755062807,-3336.33,0.00020821,2]
[367337467,1750755062816,-460.0,0.00020821,2]
[367337468,1750755062826,-460.0,0.00020821,2]
[367337469,1750755062835,-460.0,0.00020821,2]
[367337470,1750755062844,-460.0,0.00020821,2]
[367337471,1750755062852,-460.0,0.00020821,2]
[367337472,1750755062862,-3108.84,0.00020821,2]
[367337473,1750755062871,-1043.22,0.00020821,2]
[367337474,1750755062880,-2718.8,0.00020821,2]
[367337475,1750755062889,-460.0,0.00020821,2]
[367337476,1750755062898,-2297.74,0.00020821,2]
[367337477,1750755062907,-460.0,0.00020821,2]
[367337478,1750755062916,-472.84,0.00020821,2]
[367337479,1750755062926,-686.97,0.00020821,2]
[367337480,1750755062935,-460.0,0.00020821,2]
[367337481,1750755062944,-460.0,0.00020821,2]
[367337482,1750755062953,-460.0,0.00020821,2]
[367337483,1750755062962,-1034.53,0.00020821,2]
[367337484,1750755062971,-460.0,0.00020821,2]
[367337485,1750755062981,-460.0,0.00020821,2]
[367337486,1750755062990,-4423.11,0.00020821,2]
[367337487,1750755062999,-460.0,0.00020821,2]
[367337488,1750755063009,-460.0,0.00020821,2]
[367337489,1750755063018,-498.87,0.00020821,2]
[367337490,1750755063027,-460.0,0.00020821,2]
[367337491,1750755063037,-1356.23,0.00020821,2]
[367337492,1750755063046,-564.81,0.00020821,2]
[367337493,1750755063055,-1527.77,0.00020821,2]
[367337494,1750755063064,-460.0,0.00020821,2]
[367337495,1750755063075,-460.0,0.00020821,2]
[367337496,1750755063084,-917.06,0.00020821,2]
[367337497,1750755063094,-460.0,0.00020821,2]
[367337498,1750755063104,-556.13,0.00020821,2]
[367337499,1750755063113,-460.0,0.00020821,2]
[367337500,1750755063123,-1891.95,0.00020821,2]
[367337501,1750755063132,-460.0,0.00020821,2]
[367337502,1750755063142,-1048.02,0.00020821,2]
[367337503,1750755063151,-1140.59,0.00020821,2]
[367337504,1750755063163,-609.41,0.00020821,2]
[367337505,1750755063172,-3302.7,0.00020821,2]
[367337506,1750755063323,-460.0,0.00020821,2]
[367337507,1750755063334,-460.0,0.00020821,2]
[367337508,1750755063343,-370.69200348,0.00020821,2]
[367337509,1750755063355,-1182.78,0.00020821,2]
[367337510,1750755063365,-865.91,0.00020821,2]
[367337511,1750755063376,-2811.91,0.00020821,2]
[367337512,1750755063386,-460.0,0.00020821,2]
[367337513,1750755063396,-460.0,0.00020821,2]
[367337514,1750755063406,-460.0,0.00020821,2]
[367337515,1750755063415,-460.0,0.00020821,2]
[367337516,1750755063425,-468.72,0.00020821,2]
[367337517,1750755063435,-460.0,0.00020821,2]
[367337518,1750755063445,-1078.54,0.00020821,2]
[367337519,1750755063454,-460.0,0.00020821,2]
[367337520,1750755063463,-460.0,0.00020821,2]
[367337521,1750755063472,-1172.06,0.00020821,2]
[367337522,1750755063481,-460.0,0.00020821,2]
[367337523,1750755063491,-936.84,0.00020821,2]
[367337524,1750755063500,-460.0,0.00020821,2]
[367337525,1750755063510,-1147.18,0.00020821,2]
[367337526,1750755063519,-669.18,0.00020821,2]
[367337527,1750755063528,-1364.47,0.00020821,2]
[367337528,1750755063538,-460.0,0.00020821,2]
[367337529,1750755063547,-787.57,0.00020821,2]
[367337530,1750755063558,-3667.8,0.00020821,2]
[367337531,1750755063568,-1283.7,0.00020821,2]
[367337532,1750755063581,-460.0,0.00020821,2]
[367337533,1750755063590,-2790.88,0.00020821,2]
[367337534,1750755063600,-1147.28,0.00020821,2]
[367337535,1750755063609,-460.0,0.00020821,2]
[367337536,1750755063619,-827.6,0.00020821,2]
[367337537,1750755063628,-460.0,0.00020821,2]
[367337538,1750755063638,-460.0,0.00020821,2]
[367337539,1750755063649,-1404.87,0.00020821,2]
[367337540,1750755063659,-460.0,0.00020821,2]
[367337541,1750755063668,-567.76,0.00020821,2]
[367337542,1750755063679,-460.0,0.00020821,2]
[367337543,1750755063689,-665.95,0.00020821,2]
[367337544,1750755063698,-494.52,0.00020821,2]
[367337545,1750755063708,-2058.09,0.00020821,2]
[367337546,1750755063717,-562.0,0.00020823,2]
[367337547,1750755063727,-420.0,0.00020825,2]
[367337548,1750755063736,-420.0,0.00020825,2]
[367337549,1750755063746,-420.0,0.00020825,2]
[367337550,1750755063756,-420.0,0.00020826,2]
[367337551,1750755063766,-562.0,0.0002085,2]
[367337552,1750755063775,-2654.37735629,0.00020866,4]
[367337553,1750755063785,-800.0,0.00020873,2]
[367337554,1750755063794,-562.0,0.00020878,2]
[367337555,1750755063804,-151.0,0.000209,3]
[367337556,1750755063814,-562.0,0.00020905,2]
[367337557,1750755063824,-1680.0,0.00020926,2]
[367337558,1750755063833,-562.0,0.00020932,2]
[367337559,1750755063843,-624.0,0.00020937,2]
[367337560,1750755063853,-562.0,0.0002096,2]
[367337561,1750755063862,-800.0,0.00020986,2]
[367337562,1750755063871,-574.0,0.00020987,2]
[367337563,1750755063882,-160.0,0.00021,2]
[367337564,1750755063891,-1054.97647579,0.00021006,2]
[367337565,1750755063901,-562.69625406,0.00021006,2]
[367337566,1750755063912,-731.0954372,0.00021068,2]
[367337567,1750755063922,-1500.0,0.00021068,2]
[367337568,1750755063931,-1517.33332786,0.00021068,2]
[367337569,1750755063941,-1500.0,0.00021068,2]
[367337570,1750755063950,-627.06812442,0.00021068,2]
[367337571,1750755063960,-1500.0,0.00021068,2]
[367337572,1750755063971,-1500.0,0.00021068,2]
[367337573,1750755063981,-1500.0,0.00021068,2]
[367337574,1750755063991,-1502.51720373,0.00021068,2]
[367337575,1750755064001,-1500.0,0.00021068,2]
[367337576,1750755064011,-702.83,0.00021095,2]
[367337577,1750755064021,-702.83,0.00021095,2]
[367337578,1750755064031,-460.0,0.00021095,2]
[367337579,1750755064041,-460.0,0.00021095,2]
[367337580,1750755064051,-460.0,0.00021095,2]
[367337581,1750755064061,-460.0,0.00021095,2]
[367337582,1750755064070,-460.0,0.00021095,2]
[367337583,1750755064080,-354.49213781,0.00021095,2]
[367337584,1750755064090,-460.0,0.00021095,2]
[367337585,1750755064099,-460.0,0.00021095,2]
[367337586,1750755064109,-460.0,0.00021095,2]
[367337587,1750755064118,-460.0,0.00021095,2]
[367337588,1750755064128,-588.33,0.00021095,2]
[367337589,1750755064137,-460.0,0.00021095,2]
[367337590,1750755064147,-525.25,0.00021095,2]
[367337591,1750755064157,-286.52,0.00021095,2]
[367337592,1750755064167,-460.0,0.00021095,2]
[367337593,1750755064177,-460.0,0.00021095,2]
[367337594,1750755064187,-460.0,0.00021095,2]
[367337595,1750755064198,-589.59,0.00021095,2]
[367337596,1750755064207,-639.86,0.00021095,16]
[367337597,1750755064217,-1033.48,0.00021095,2]
[367337598,1750755064226,-460.0,0.00021095,2]
[367337599,1750755064235,-701.42,0.00021095,2]
[367337600,1750755064245,-460.0,0.00021095,2]
[367337601,1750755064254,-1859.83,0.00021095,2]
[367337602,1750755064264,-460.0,0.00021095,2]
[367337603,1750755064273,-438.22,0.00021095,2]
[367337604,1750755064283,-255.46738044,0.00021095,2]
[367337605,1750755064292,-460.0,0.00021095,2]
[367337606,1750755064302,-460.0,0.00021095,2]
[367337607,1750755064312,-460.0,0.00021095,2]
[367337608,1750755064321,-460.0,0.00021095,2]
[367337609,1750755064331,-460.0,0.00021095,2]
[367337610,1750755064341,-460.0,0.00021095,2]
[367337611,1750755064351,-460.0,0.00021095,2]
[367337612,1750755064361,-460.0,0.00021095,2]
[367337613,1750755064371,-460.0,0.00021095,2]
[367337614,1750755064381,-460.0,0.00021095,2]
[367337615,1750755064391,-460.0,0.00021095,2]
[367337616,1750755064401,-460.0,0.00021095,2]
[367337617,1750755064411,-460.0,0.00021095,2]
[367337618,1750755064421,-837.07,0.00021095,2]
[367337619,1750755064431,-1145.59,0.00021095,2]
[367337620,1750755064442,-460.0,0.00021095,2]
[367337621,1750755064452,-460.0,0.00021095,2]
[367337622,1750755064462,-460.0,0.00021095,2]
[367337623,1750755064472,-460.0,0.00021095,2]
[367337624,1750755064481,-460.0,0.00021095,2]
[367337625,1750755064493,-2160.1,0.00021095,2]
[367337626,1750755064502,-460.0,0.00021095,2]
[367337627,1750755064512,-460.0,0.00021095,2]
[367337628,1750755064523,-460.0,0.00021095,2]
[367337629,1750755064533,-460.0,0.00021095,2]
[367337630,1750755064543,-477.71060093,0.00021095,2]
[367337631,1750755064552,-460.0,0.00021095,2]
[367337632,1750755064564,-460.0,0.00021095,2]
[367337633,1750755064574,-460.0,0.00021095,2]
[367337634,1750755064584,-802.49,0.00021095,2]
[367337635,1750755064593,-170.98678212,0.00021095,2]
[367337636,1750755064604,-3492.25,0.00021095,2]
[367337637,1750755064613,-1711.46,0.00021095,2]
[367337638,1750755064622,-1352.03,0.00021095,2]
[367337639,1750755064631,-1160.85,0.00021095,2]
[367337640,1750755064642,-3802.86,0.00021095,2]
[367337641,1750755064651,-460.0,0.00021095,2]
[367337642,1750755064660,-460.0,0.00021095,2]
[367337643,1750755064669,-460.0,0.00021095,2]
[367337644,1750755064679,-460.0,0.00021095,2]
[367337645,1750755064688,-460.0,0.00021095,2]
[367337646,1750755064697,-512.81,0.00021095,2]
[367337647,1750755064707,-1227.2,0.00021095,2]
[367337648,1750755064717,-460.0,0.00021095,2]
[367337649,1750755064726,-460.0,0.00021095,2]
[367337650,1750755064737,-1558.69,0.00021095,2]
[367337651,1750755064746,-460.0,0.00021095,2]
[367337652,1750755064756,-460.0,0.00021095,2]
[367337653,1750755064766,-890.92,0.00021095,2]
[367337654,1750755064775,-1129.31,0.00021095,2]
[367337655,1750755064785,-460.0,0.00021095,2]
[367337656,1750755064794,-460.0,0.00021095,2]
[367337657,1750755064803,-503.39,0.00021095,2]
[367337658,1750755064812,-3336.33,0.00021095,2]